bitfinex/quotes_ETHUSD_20250223
["timestamp","ask_amount","ask_price","bid_price","bid_amount"]
[1740336192132,0.7822,2816.9,2816.5,3.55045]
[1740336192400,0.7822,2816.9,2816.6,0.09548243]
[1740336197354,0.7822,2816.9,2816.6,3.64585243]
[1740336197651,0.7822,2816.9,2816.6,0.09548243]
[1740336198436,4.33222,2816.9,2816.6,0.09548243]
[1740336206140,7.88231,2816.9,2816.6,0.09548243]
[1740336206347,5.55435365,2816.9,2816.4,3.55061]
[1740336206534,4.33222,2816.9,2816.7,0.09556809]
[1740336206735,4.33222,2816.9,2816.4,3.55061]
[1740336206935,4.33222,2816.9,2816.8,0.09556809]
[1740336207107,4.33222,2816.9,2816.4,3.55061]
[1740336207312,4.33222,2816.9,2816.8,0.09556809]
[1740336207644,5.55432565,2816.9,2816.4,3.55061]
[1740336207848,4.33222,2816.9,2816.8,0.09556809]
[1740336208054,4.33222,2816.9,2816.4,3.55061]
[1740336208256,4.33222,2816.9,2816.8,0.09556809]
[1740336208458,4.33222,2816.9,2816.4,3.55061]
[1740336208634,4.33222,2816.9,2816.8,0.09556809]
[1740336208836,5.55433365,2816.9,2816.8,0.09556809]
[1740336209221,5.55433365,2816.9,2816.4,3.55061]
[1740336209456,4.33222,2816.9,2816.8,0.09556809]
[1740336209965,4.33222,2816.9,2816.4,3.55061]
[1740336210151,4.33222,2816.9,2816.8,0.09556809]
[1740336210360,4.33222,2816.9,2816.4,3.55061]
[1740336210662,4.33222,2816.9,2816.5,3.55043]
[1740336210962,0.7822,2816.9,2816.6,0.09556809]
[1740336211360,4.33221,2816.9,2816.6,0.09556809]
[1740336212261,3.55001,2816.9,2816.6,0.09556809]
[1740336212439,3.55001,2816.9,2816.6,0.82996809]
[1740336212823,3.54993,2817.0,2816.6,0.82996809]
[1740336217275,6.54976,2817.1,2816.7,3.55024]
[1740336217482,3.54988,2817.0,2816.6,4.38031809]
[1740336217682,0.6961771,2816.8,2816.6,4.28475]
[1740336218175,0.6961771,2816.8,2816.6,0.7344]
[1740336218376,0.6961771,2816.8,2816.4,3.55062]
[1740336218582,0.6961771,2816.8,2816.7,0.09554237]
[1740336218765,0.6961771,2816.8,2816.5,3.55049]
[1740336218972,0.6961771,2816.8,2816.7,0.09547385]
[1740336219133,0.6961771,2816.8,2816.5,3.55049]
[1740336219334,0.6961771,2816.8,2816.7,0.09547385]
[1740336219543,0.6961771,2816.8,2816.5,3.55049]
[1740336219747,0.6961771,2816.8,2816.7,0.09547385]
[1740336219947,0.6961771,2816.8,2816.5,3.55049]
[1740336220200,0.6961771,2816.8,2816.7,0.09547385]
[1740336220411,0.6961771,2816.8,2816.5,3.55049]
[1740336220569,0.6961771,2816.8,2816.7,0.09547385]
[1740336220780,0.6961771,2816.8,2816.5,3.55049]
[1740336220969,0.6961771,2816.8,2816.7,0.09547385]
[1740336221168,0.6961771,2816.8,2816.5,3.55049]
[1740336221370,0.6961771,2816.8,2816.7,0.09547385]
[1740336221672,0.6961771,2816.8,2816.4,4.2849]
[1740336222271,0.6961771,2816.8,2816.5,0.09206407]
[1740336222471,3.55005,2816.9,2816.5,0.09206407]
[1740336222672,4.8893965,2816.6,2816.5,0.09206407]
[1740336223000,3.55066,2816.4,2815.9,4.28558]
[1740336223400,4.8896865,2816.4,2815.9,4.28558]
[1740336223983,3.55077,2816.3,2815.9,4.28558]
[1740336224884,1.3390265,2816.4,2815.9,0.7344]
[1740336225067,4.8896665,2816.4,2816.0,3.55111]
[1740336225593,9.8690145,2816.6,2816.1,3.55097]
[1740336225793,3.55059,2816.5,2816.0,3.55111]
[1740336226106,3.55065,2816.4,2816.0,3.55111]
[1740336226691,3.55053,2816.5,2816.0,3.55111]
[1740336226889,0.27026065,2816.3,2816.1,3.55094]
[1740336227103,0.27026065,2816.3,2816.2,3.55088]
[1740336227273,4.223108,2816.6,2816.2,0.7344]
[1740336227493,4.223108,2816.6,2816.5,3.5505]
[1740336227802,5.1394265,2816.8,2816.5,3.5505]
[1740336228165,8.6895565,2816.8,2816.3,3.55065]
[1740336228368,8.6895565,2816.8,2816.4,3.55062]
[1740336228607,10.44251495,2816.8,2816.4,3.55062]
[1740336228802,10.44251495,2816.8,2816.2,4.28518]
[1740336229104,3.55032,2816.7,2816.2,4.28521]
[1740336229483,0.26388809,2816.6,2816.2,4.28521]
[1740336229974,3.81426809,2816.6,2816.2,4.28521]
[1740336230174,3.81426809,2816.6,2816.2,0.7344]
[1740336230369,0.26388809,2816.6,2816.2,4.28522]
[1740336231210,0.26388809,2816.6,2816.2,0.7344]
[1740336231502,0.26388809,2816.6,2816.4,3.55063]
[1740336231706,0.26388809,2816.6,2816.3,3.55075]
[1740336233410,0.26388809,2816.6,2816.4,0.09267223]
[1740336237513,0.26388809,2816.6,2816.4,3.64324223]
[1740336238811,0.26388809,2816.6,2816.4,0.09267223]
[1740336239013,0.7513,2816.5,2816.4,0.09267223]
[1740336240909,0.26388809,2816.6,2816.4,0.09267223]
[1740336242037,3.55025,2816.7,2816.4,0.09267223]
[1740336243081,3.81755481,2816.7,2816.4,0.09267223]
[1740336244003,4.974408,2816.9,2816.4,0.09267223]
[1740336244209,4.974408,2816.9,2816.4,0.7344]
[1740336244398,7.59976495,2816.9,2816.5,0.09228678]
[1740336244595,4.8893065,2816.7,2816.2,3.55081]
[1740336244915,11.14976495,2816.9,2816.4,3.55056]
[1740336245598,11.14976495,2816.9,2816.5,3.55049]
[1740336246934,7.59976495,2816.9,2816.5,3.55049]
[1740336247825,0.70093855,2816.6,2816.5,3.55049]
[1740336248544,0.70093855,2816.6,2816.5,0.09226965]
[1740336248714,0.70093855,2816.6,2816.4,3.55062]
[1740336249034,0.70093855,2816.6,2816.5,0.09226965]
[1740336251404,0.70093855,2816.6,2816.3,3.5507]
[1740336251618,0.70093855,2816.6,2816.5,0.09222682]
[1740336251818,0.70093855,2816.6,2816.3,3.5507]
[1740336252135,0.70093855,2816.6,2816.5,0.09222682]
[1740336252336,3.55015,2816.8,2816.4,3.55057]
[1740336252635,5.0469303,2816.8,2816.5,0.09222682]
[1740336254830,1.4967803,2816.8,2816.5,0.09222682]
[1740336255219,5.0469103,2816.8,2816.5,0.09222682]
[1740336259912,1.4967803,2816.8,2816.5,0.09222682]
[1740336260124,5.0469203,2816.8,2816.5,0.09222682]
[1740336261438,1.13603548,2816.7,2816.3,3.55065]
[1740336261641,3.55014,2816.8,2816.6,0.09221825]
[1740336261835,9.8635245,2816.9,2816.2,3.55088]
[1740336262045,9.8635245,2816.9,2816.7,0.09221825]
[1740336262230,9.8635245,2816.9,2816.4,3.55061]
[1740336262551,9.8634345,2816.9,2816.8,0.09221825]
[1740336262732,3.55018,2816.8,2816.4,3.55061]
[1740336263054,11.53157676,2816.9,2816.5,0.09226108]
[1740336263354,0.8146,2817.1,2816.5,0.82666108]
[1740336263554,8.587208,2817.3,2816.8,3.55005]
[1740336263736,9.9262345,2817.3,2816.8,3.55002]
[1740336263942,3.0,2817.2,2816.9,3.54995]
[1740336264115,3.0,2817.2,2816.9,3.64220251]
[1740336265234,1.3390265,2817.1,2816.9,3.64220251]
[1740336271062,1.3390265,2817.1,2816.9,0.09225251]
[1740336271259,6.15747963,2817.1,2816.9,0.09225251]
[1740336271461,3.55021,2816.8,2816.3,3.55067]
[1740336271760,1.3390265,2816.6,2816.4,0.09208978]
[1740336272628,1.3390265,2816.6,2816.2,4.28527]
[1740336272873,4.8893965,2816.6,2816.5,0.09208978]
[1740336273075,4.8893965,2816.6,2816.2,4.28527]
[1740336273280,4.8893965,2816.6,2816.5,0.09208978]
[1740336273483,4.8893965,2816.6,2816.2,4.28527]
[1740336273634,4.8893965,2816.6,2816.5,0.09208978]
[1740336273824,4.8893965,2816.6,2816.2,0.7344]
[1740336274029,4.8893965,2816.6,2816.5,0.09208978]
[1740336274229,2.26023015,2816.6,2816.0,0.7344]
[1740336274482,3.55077,2816.3,2816.0,0.7344]
[1740336277592,3.55095,2816.2,2815.8,0.7344]
[1740336278356,3.55095,2816.2,2815.9,0.09215831]
[1740336279666,4.32307,2816.3,2815.9,0.09215831]
[1740336279874,3.55104,2816.1,2815.9,0.09215831]
[1740336280171,3.55102,2816.1,2815.9,0.09215831]
[1740336281535,3.55113,2816.0,2815.9,0.09215831]
[1740336283283,3.55143,2815.8,2815.6,0.7344]
[1740336286761,5.6748565,2815.8,2815.2,0.7344]
[1740336286951,3.55166,2815.6,2815.2,0.7344]
[1740336287366,2.1234265,2815.8,2815.2,0.7344]
[1740336287566,3.55169,2815.6,2815.2,0.7344]
[1740336287767,3.55169,2815.6,2815.2,1.163074]
[1740336288585,3.55179,2815.5,2815.2,1.163074]
[1740336288885,3.55179,2815.5,2814.9,4.8914665]
[1740336288886,3.55201,2815.4,2814.9,0.7344]
[1740336289453,3.55207,2815.3,2814.9,0.7344]
[1740336291188,4.8912265,2815.2,2814.9,0.7344]
[1740336291483,3.5522,2815.2,2814.9,0.7344]
[1740336291688,3.5523,2815.1,2814.9,0.7344]
[1740336292384,3.5523,2815.1,2814.6,3.55288]
[1740336292385,3.5523,2815.1,2814.6,4.28729]
[1740336292585,3.5523,2815.1,2814.6,5.071312]
[1740336292749,0.8046,2815.2,2814.6,0.7344]
[1740336292959,3.55252,2814.9,2814.6,0.7344]
[1740336293297,3.55284,2814.7,2814.4,0.7344]
[1740336293659,3.55297,2814.6,2814.4,0.7344]
[1740336294390,5.6963665,2814.8,2814.4,0.7344]
[1740336294663,3.55277,2814.7,2814.3,0.258]
[1740336295108,3.55277,2814.7,2814.3,3.55326]
[1740336295507,3.55277,2814.7,2814.2,3.55339]
[1740336295688,3.55277,2814.7,2814.2,7.10673]
[1740336295897,3.55277,2814.7,2814.3,3.55327]
[1740336296300,3.55266,2814.8,2814.3,3.55327]
[1740336296610,5.6961065,2815.0,2814.5,4.28738]
[1740336296797,2.1436265,2815.0,2814.6,3.55289]
[1740336297175,5.6961365,2815.0,2814.5,4.28741]
[1740336297375,5.6961365,2815.0,2814.6,3.55288]
[1740336297791,5.6961165,2815.0,2814.5,0.7344]
[1740336298013,3.55258,2814.9,2814.5,4.28742]
[1740336298412,2.1436265,2815.0,2814.5,4.28742]
[1740336298612,5.6960365,2815.0,2814.5,4.28736]
[1740336298915,5.6960365,2815.0,2814.6,3.55289]
[1740336299429,3.55252,2814.9,2814.5,4.28741]
[1740336299584,3.55252,2814.9,2814.5,0.7344]
[1740336299785,3.55252,2814.9,2814.5,4.28741]
[1740336299997,5.6960365,2815.0,2814.5,4.28741]
[1740336300193,3.5526,2814.9,2814.4,3.55312]
[1740336301215,3.55279,2814.7,2814.3,3.55327]
[1740336301422,1.3390265,2814.8,2814.4,3.55309]
[1740336301717,3.55254,2814.9,2814.4,3.55309]
[1740336301916,2.1436265,2815.0,2814.2,0.7344]
[1740336302215,2.1436265,2815.0,2814.6,3.55284]
[1740336302418,5.6960365,2815.0,2814.6,3.55284]
[1740336303818,4.49604576,2815.1,2814.6,4.28724]
[1740336304022,4.49604576,2815.1,2814.9,3.55249]
[1740336304181,4.49604576,2815.1,2814.8,3.55263]
[1740336304381,4.49604576,2815.1,2814.9,3.55242]
[1740336304587,0.71489052,2815.0,2814.8,3.55263]
[1740336304819,0.71489052,2815.0,2814.9,0.355263]
[1740336305517,0.71489052,2815.0,2814.6,1.444992]
[1740336305726,0.71489052,2815.0,2814.7,3.55276]
[1740336306084,0.71489052,2815.0,2814.8,0.08876379]
[1740336306590,0.71489052,2815.0,2814.9,0.08876379]
[1740336310342,0.7671,2814.9,2814.4,4.28748]
[1740336310497,4.31972,2814.9,2814.5,3.55297]
[1740336310845,0.7671,2814.9,2814.5,3.55297]
[1740336311824,4.31963,2814.9,2814.5,3.55297]
[1740336313730,0.7671,2814.9,2814.5,3.55297]
[1740336316822,5.1738918,2814.9,2814.5,3.55297]
[1740336318040,5.1738918,2814.9,2814.4,3.55313]
[1740336319438,1.6213618,2814.9,2814.2,0.7344]
[1740336319747,3.55299,2814.6,2814.1,0.005]
[1740336320037,3.55302,2814.5,2814.1,0.005]
[1740336320635,3.55285,2814.7,2814.1,3.55841]
[1740336320839,3.55285,2814.7,2814.2,3.55334]
[1740336321912,4.36144,2814.8,2814.3,3.5532]
[1740336322513,3.55283,2814.7,2814.1,0.005]
[1740336322714,3.55283,2814.7,2814.3,3.55324]
[1740336323530,3.55283,2814.7,2814.4,0.08857514]
[1740336323840,3.55283,2814.7,2814.1,3.55852]
[1740336324015,3.55283,2814.7,2814.5,0.08857514]
[1740336324212,3.5529,2814.6,2814.2,3.5534]
[1740336324438,3.55283,2814.7,2814.6,0.08857514]
[1740336324667,3.55283,2814.7,2814.2,3.5534]
[1740336324802,7.10569,2814.7,2814.6,0.08857514]
[1740336325006,3.55283,2814.7,2814.2,3.5534]
[1740336325204,3.5532,2814.4,2814.3,0.08857514]
[1740336325403,4.3619,2814.4,2814.1,0.005]
[1740336325601,4.3621,2814.2,2814.1,0.005]
[1740336326034,0.8087,2814.2,2814.1,0.005]
[1740336326631,4.223108,2814.4,2814.1,3.55853]
[1740336326944,4.223108,2814.4,2814.2,3.55331]
[1740336327318,4.223108,2814.4,2814.2,3.55334]
[1740336328446,4.223108,2814.4,2814.1,3.55853]
[1740336328920,4.223108,2814.4,2814.1,7.11193]
[1740336329662,0.7875,2814.5,2814.2,3.55339]
[1740336330522,0.26191119,2814.4,2814.2,3.5533]
[1740336331631,0.26191119,2814.4,2814.3,3.55328]
[1740336335557,0.26191119,2814.4,2814.1,0.005]
[1740336335758,0.26191119,2814.4,2814.1,3.55852]
[1740336336133,0.26191119,2814.4,2814.2,0.14561164]
[1740336336332,1.49976111,2814.4,2814.2,0.14561164]
[1740336336546,0.7963,2814.3,2814.2,0.14561164]
[1740336337445,0.7963,2814.3,2814.1,0.005]
[1740336337658,0.7963,2814.3,2814.2,0.14562022]
[1740336337861,4.34958,2814.3,2814.2,0.14562022]
[1740336338059,5.28983111,2814.3,2814.2,0.14562022]
[1740336339148,6.01394953,2814.3,2814.1,0.005]
[1740336339331,5.07369842,2814.3,2814.2,0.14562022]
[1740336339533,1.52041842,2814.3,2814.2,0.14562022]
[1740336341761,0.72411842,2814.3,2814.2,0.14562022]
[1740336343028,0.72411842,2814.3,2814.2,3.69902022]
[1740336344382,0.72411842,2814.3,2814.2,0.14562022]
[1740336345282,0.72411842,2814.3,2814.2,3.69902022]
[1740336347357,0.72411842,2814.3,2814.2,4.42476724]
[1740336349295,0.72411842,2814.3,2814.2,3.69902022]
[1740336350292,0.72411842,2814.3,2814.2,0.14562022]
[1740336350498,1.54551842,2814.3,2814.1,0.005]
[1740336350795,1.54551842,2814.3,2814.2,0.145706]
[1740336356615,0.72411842,2814.3,2814.2,0.145706]
[1740336356764,0.26937335,2814.4,2814.2,0.145706]
[1740336357964,3.82255335,2814.4,2814.2,0.145706]
[1740336358301,5.06035548,2814.4,2814.2,0.145706]
[1740336358811,1.50717548,2814.4,2814.2,0.145706]
[1740336359279,0.26937335,2814.4,2814.2,0.145706]
[1740336362675,3.82260335,2814.4,2814.2,0.145706]
[1740336365822,0.26937335,2814.4,2814.2,0.145706]
[1740336368626,3.82257335,2814.4,2814.2,0.145706]
[1740336371497,4.33628,2814.3,2814.2,0.145706]
[1740336371718,4.3364,2814.2,2814.1,0.005]
[1740336375335,8.559508,2814.2,2814.1,0.005]
[1740336376551,9.627531,2814.2,2814.1,0.005]
[1740336377286,12.627531,2814.2,2814.1,0.005]
[1740336378926,13.177531,2814.2,2814.1,0.005]
[1740336379117,15.35330939,2814.2,2814.1,0.005]
[1740336381666,15.35330939,2814.2,2813.6,0.1536326]
[1740336381667,4.30623,2813.7,2813.6,0.1536326]
[1740336381872,14.2117467,2813.7,2813.6,0.1536326]
[1740336382084,14.2117467,2813.7,2812.3,1.34120435]
[1740336382085,3.55573,2812.4,2811.9,0.7344]
[1740336382224,0.7522,2812.7,2811.9,0.71046263]
[1740336382426,4.30758,2812.7,2812.2,3.55581]
[1740336382736,4.30758,2812.7,2812.1,0.7776]
[1740336382737,0.7674,2812.5,2811.1,0.7776]
[1740336382939,0.7674,2812.5,2811.6,0.7776]
[1740336382940,3.55621,2812.0,2811.6,0.7776]
[1740336383138,4.223108,2812.1,2811.6,0.7776]
[1740336383341,4.223108,2812.1,2812.0,3.55618]
[1740336383558,4.223108,2812.1,2811.9,3.55627]
[1740336383746,4.223108,2812.1,2811.8,3.55635]
[1740336383923,4.223108,2812.1,2812.0,0.1126045]
[1740336384130,4.223108,2812.1,2811.8,3.55635]
[1740336384331,4.223108,2812.1,2812.0,0.1126045]
[1740336384555,0.7674,2812.0,2811.3,0.7776]
[1740336384790,3.55669,2811.6,2811.0,3.55733]
[1740336384937,3.55689,2811.5,2811.0,3.55733]
[1740336385151,3.55689,2811.5,2810.9,0.7776]
[1740336385152,3.55699,2811.4,2810.9,0.7776]
[1740336385348,3.5571,2811.3,2810.9,0.7776]
[1740336385861,0.35571,2811.3,2810.8,0.1536326]
[1740336386036,3.55752,2811.0,2810.8,0.1536326]
[1740336386237,3.55757,2810.9,2810.8,0.1536326]
[1740336386460,3.55747,2811.0,2810.8,0.1536326]
[1740336386763,0.26036844,2811.1,2811.0,3.55736]
[1740336386950,0.26036844,2811.1,2811.0,7.11473]
[1740336387157,4.223108,2811.3,2811.2,3.55719]
[1740336388867,1.068918,2811.8,2811.2,3.55719]
[1740336388868,1.068918,2811.8,2811.7,3.55656]
[1740336389043,2.4747078,2812.0,2811.9,3.55631]
[1740336389244,0.8118,2812.3,2811.9,3.55631]
[1740336389961,7.36762,2812.3,2811.7,7.11305]
[1740336390266,7.36762,2812.3,2812.1,3.55604]
[1740336390267,5.60350047,2812.3,2812.1,3.55604]
[1740336390440,4.223108,2812.7,2811.6,0.7709]
[1740336390767,4.223108,2812.7,2811.7,0.7709]
[1740336390929,4.223108,2812.7,2812.4,0.7709]
[1740336391136,1.068458,2812.9,2812.5,3.55555]
[1740336391355,4.223108,2813.0,2812.5,3.66175464]
[1740336391662,5.71460947,2813.0,2812.5,3.66166464]
[1740336392235,5.71460947,2813.0,2812.6,3.55542]
[1740336392768,5.71460947,2813.0,2812.7,0.10587931]
[1740336393654,4.223108,2813.0,2812.7,3.66107931]
[1740336393859,4.223108,2813.0,2812.8,3.55517]
[1740336394056,4.223108,2813.0,2812.7,0.10587931]
[1740336394057,0.26089952,2813.1,2812.9,3.55504]
[1740336394235,3.0,2813.3,2813.0,3.55492]
[1740336394575,3.0,2813.3,2813.1,0.1055883]
[1740336395147,3.0,2813.3,2812.9,3.55502]
[1740336395351,4.76099699,2813.3,2813.2,0.1055883]
[1740336395533,4.76099699,2813.3,2812.9,3.55502]
[1740336395738,3.0,2813.3,2813.0,0.1055883]
[1740336395945,6.55455,2813.3,2813.0,0.1055883]
[1740336396167,3.0,2813.3,2813.0,0.1055883]
[1740336398392,6.55461,2813.3,2813.0,0.1055883]
[1740336398552,6.55461,2813.3,2812.8,3.55511]
[1740336398753,8.42245799,2813.3,2813.1,0.1055883]
[1740336398953,8.42245799,2813.3,2812.8,3.55511]
[1740336399185,8.42245799,2813.3,2813.2,0.1055883]
[1740336399387,8.42245799,2813.3,2812.8,3.55511]
[1740336400080,8.42245799,2813.3,2812.9,0.1049977]
[1740336400686,3.55492,2813.0,2812.9,0.1049977]
[1740336400899,3.55492,2813.0,2812.1,0.7798]
[1740336401193,7.778028,2813.0,2812.5,3.55554]
[1740336401555,4.223108,2813.0,2812.8,3.55516]
[1740336401980,4.223108,2813.0,2812.9,0.10113653]
[1740336402384,4.223108,2813.0,2812.8,3.55516]
[1740336402562,4.223108,2813.0,2812.9,0.10120499]
[1740336403091,8.6626597,2813.0,2812.5,3.55555]
[1740336403389,8.6626597,2813.0,2812.6,0.10120499]
[1740336404191,0.8213,2812.8,2812.6,0.10120499]
[1740336404388,6.32579671,2812.7,2812.6,0.10120499]
[1740336404591,0.55,2812.6,2811.8,0.7798]
[1740336404900,4.223108,2812.5,2812.2,3.55593]
[1740336405077,7.778668,2812.5,2812.1,3.55597]
[1740336405278,4.223108,2812.5,2812.1,3.55597]
[1740336405482,4.223108,2812.5,2812.2,0.09761008]
[1740336406061,7.778668,2812.5,2812.2,0.09761008]
[1740336406261,4.223108,2812.5,2812.1,3.55604]
[1740336406456,4.223108,2812.5,2812.2,0.09761008]
[1740336408896,4.223108,2812.5,2812.2,3.65347008]
[1740336409474,4.223108,2812.5,2812.2,0.09761008]
[1740336409986,4.223108,2812.5,2812.2,3.65354008]
[1740336410572,4.223108,2812.5,2812.2,0.09761008]
[1740336410573,0.7922,2812.4,2812.2,0.09761008]
[1740336410966,0.7922,2812.4,2812.2,3.65354008]
[1740336411165,0.7922,2812.4,2812.2,0.09761008]
[1740336411662,4.223108,2812.5,2812.2,3.55584]
[1740336411881,0.26065291,2812.4,2812.3,0.09848313]
[1740336412497,0.26065291,2812.4,2812.3,3.65428313]
[1740336413760,4.223108,2812.5,2812.4,4.35428]
[1740336413966,7.223108,2812.9,2812.6,3.55542]
[1740336414205,0.72313092,2812.7,2812.6,3.55542]
[1740336414600,0.72313092,2812.7,2812.6,3.65328094]
[1740336416495,3.0,2813.2,2812.6,0.09786094]
[1740336416809,3.0,2813.2,2813.0,3.5549]
[1740336416970,3.0,2813.2,2812.8,3.55517]
[1740336417168,3.0,2813.2,2812.4,0.7986]
[1740336417169,3.55494,2813.0,2812.4,4.35421]
[1740336417396,4.36684,2813.0,2812.5,3.55549]
[1740336418268,0.8119,2813.0,2812.6,3.55532]
[1740336418610,0.8119,2813.0,2812.8,3.55516]
[1740336420409,4.33024457,2813.2,2812.9,3.55504]
[1740336420611,5.62221383,2813.2,2812.6,3.55532]
[1740336420810,5.62221383,2813.2,2812.7,3.55518]
[1740336421111,5.62221383,2813.2,2812.8,3.55512]
[1740336421310,4.55382383,2813.2,2812.8,3.55512]
[1740336421511,4.55382383,2813.2,2812.4,3.55564]
[1740336421688,3.58239671,2812.9,2812.0,0.7986]
[1740336421895,7.778378,2812.8,2812.1,3.55599]
[1740336422092,3.55544,2812.6,2812.1,3.55599]
[1740336422388,3.55544,2812.6,2812.1,3.55605]
[1740336422814,3.55544,2812.6,2812.0,0.7986]
[1740336423118,3.55569,2812.4,2812.0,3.55615]
[1740336424391,4.25077801,2812.2,2811.8,3.55637]
[1740336424595,3.55619,2812.0,2811.6,3.55661]
[1740336425319,0.8119,2812.1,2811.3,4.35565]
[1740336425505,3.5564,2811.9,2811.4,3.55685]
[1740336426016,0.8119,2811.8,2811.2,3.55713]
[1740336426218,3.55666,2811.7,2811.1,3.55724]
[1740336426521,3.55666,2811.7,2811.1,7.11447]
[1740336426699,3.55666,2811.7,2811.2,3.55716]
[1740336426900,7.11334,2811.7,2811.1,3.55723]
[1740336427412,3.55682,2811.5,2811.1,3.55723]
[1740336427612,3.55669,2811.6,2811.1,3.55723]
[1740336428120,3.55694,2811.4,2810.4,0.7835]
[1740336428336,3.55755,2811.0,2810.5,3.55803]
[1740336428691,4.34255,2811.0,2810.5,3.55803]
[1740336428889,7.11304671,2811.0,2810.9,0.09579807]
[1740336429113,3.55869,2810.1,2809.4,4.26269746]
[1740336429332,4.223108,2810.1,2810.0,3.55871]
[1740336429489,4.223108,2810.6,2810.5,3.55808]
[1740336429695,3.5582,2810.5,2809.7,0.7835]
[1740336430021,8.2034388,2810.6,2809.7,0.7835]
[1740336430225,8.2034388,2810.6,2810.0,3.55863]
[1740336430441,8.2034388,2810.6,2810.1,3.55852]
[1740336430735,4.223108,2810.6,2809.8,3.55897]
[1740336430895,4.223108,2810.6,2810.5,3.55808]
[1740336431089,5.008108,2811.1,2810.8,3.5577]
[1740336431293,5.008108,2811.1,2810.9,3.55756]
[1740336431494,5.008108,2811.1,2810.9,3.55757]
[1740336432017,4.223108,2811.1,2810.7,3.55774]
[1740336432326,4.223108,2811.1,2810.8,3.55759]
[1740336432526,4.223108,2811.1,2811.0,3.55745]
[1740336433031,4.223108,2811.1,2810.9,3.55757]
[1740336433413,4.223108,2811.1,2810.7,3.55773]
[1740336433933,4.223108,2811.1,2810.8,3.55767]
[1740336435427,0.4223108,2811.0,2810.1,0.7952]
[1740336435731,4.6454188,2811.0,2810.6,3.55791]
[1740336436629,4.6454188,2811.0,2810.7,0.08662747]
[1740336436830,4.6454188,2811.0,2810.7,3.64445747]
[1740336437037,4.6454188,2811.0,2810.7,0.08662747]
[1740336437333,0.82028588,2810.9,2810.7,0.08662747]
[1740336437517,0.82028588,2810.9,2810.4,3.55811]
[1740336437699,4.6454188,2811.0,2810.6,3.55794]
[1740336437896,4.6454188,2811.0,2810.7,0.08662747]
[1740336439508,4.6454188,2811.0,2810.8,3.55769]
[1740336439711,4.6454188,2811.0,2810.6,3.55794]
[1740336439915,4.6454188,2811.0,2810.6,3.55788]
[1740336440115,4.6454188,2811.0,2810.7,3.55781]
[1740336440319,4.6454188,2811.0,2810.8,0.08662747]
[1740336440514,4.6454188,2811.0,2810.7,3.55782]
[1740336440902,4.6454188,2811.0,2810.8,0.08662747]
[1740336441115,4.6454188,2811.0,2810.7,3.55782]
[1740336441552,4.6454188,2811.0,2810.8,0.08698686]
[1740336441736,4.6454188,2811.0,2810.8,3.55769]
[1740336442046,4.223108,2811.0,2810.9,3.64455686]
[1740336442419,4.223108,2811.2,2811.0,3.55733]
[1740336442853,4.223108,2811.2,2811.0,3.55735]
[1740336443152,7.223108,2811.2,2811.1,0.08705532]
[1740336443317,7.223108,2811.2,2810.9,3.55751]
[1740336443656,8.20934319,2811.2,2811.0,0.08705532]
[1740336443963,8.20934319,2811.2,2811.0,3.64442532]
[1740336444267,4.223108,2811.2,2811.1,3.55732]
[1740336444417,0.7983,2811.7,2811.0,0.08705532]
[1740336444747,4.223108,2811.7,2811.5,3.55673]
[1740336445118,4.223108,2811.7,2811.6,3.6435485]
[1740336445421,4.6454188,2811.7,2811.6,0.0868585]
[1740336445934,4.6454188,2811.7,2811.3,3.55695]
[1740336446164,4.6454188,2811.7,2811.4,3.6437285]
[1740336446484,4.6454188,2811.7,2811.5,3.55679]
[1740336446765,4.223108,2811.7,2811.6,3.64323193]
[1740336447730,3.7983,2812.0,2811.6,0.08654193]
[1740336447935,4.223108,2812.1,2812.0,3.55618]
[1740336448177,4.223108,2812.1,2811.9,3.55631]
[1740336448484,4.223108,2812.1,2812.0,0.0863794]
[1740336449334,4.223108,2812.1,2812.0,3.6425594]
[1740336450778,5.047508,2812.6,2812.4,3.55559]
[1740336450982,1.85858977,2813.1,2812.5,0.08608861]
[1740336451129,2.77049671,2812.9,2812.3,3.55571]
[1740336451336,0.63255067,2812.8,2812.5,3.55544]
[1740336451763,0.63255067,2812.8,2812.1,3.55606]
[1740336451945,3.26316351,2813.0,2812.6,3.55533]
[1740336452165,3.26316351,2813.0,2812.7,3.55521]
[1740336452362,0.26316351,2813.0,2812.6,3.55533]
[1740336452580,1.85858977,2813.1,2812.9,3.55504]
[1740336452761,1.85858977,2813.1,2813.0,3.55492]
[1740336452960,1.85858977,2813.1,2813.0,3.63995639]
[1740336455093,1.85858977,2813.1,2813.0,0.08503639]
[1740336455461,1.85858977,2813.1,2812.9,3.55502]
[1740336455657,1.85858977,2813.1,2813.0,0.08436103]
[1740336455859,1.85858977,2813.1,2813.0,3.63928103]
[1740336457763,1.85858977,2813.1,2813.0,4.35871313]
[1740336457985,1.85858977,2813.1,2813.0,5.18221313]
[1740336458310,0.7683,2813.8,2813.6,3.55409]
[1740336458494,3.7683,2813.8,2813.6,3.55409]
[1740336458663,0.7683,2813.8,2813.7,0.08423284]
[1740336459279,3.7683,2813.8,2813.5,3.55429]
[1740336459567,1.3183,2813.3,2812.4,3.55559]
[1740336459798,3.55508,2812.9,2812.5,3.63649052]
[1740336459998,3.55519,2812.8,2812.5,0.08095052]
[1740336460166,5.25,2813.0,2812.5,0.08095052]
[1740336460167,3.55539,2812.7,2812.5,0.08095052]
[1740336460505,3.55539,2812.7,2812.2,7.1117]
[1740336460808,3.55539,2812.7,2812.1,3.55599]
[1740336460976,3.55539,2812.7,2812.3,0.07995609]
[1740336461184,1.06493667,2812.7,2812.0,3.55612]
[1740336461383,3.5553,2812.7,2812.1,3.63594609]
[1740336461797,3.5553,2812.7,2812.2,3.55593]
[1740336462300,3.5553,2812.7,2812.3,0.07995609]
[1740336464923,3.55547,2812.6,2812.3,0.07995609]
[1740336465298,3.5553,2812.7,2812.0,3.55614]
[1740336465607,0.8112,2812.5,2811.9,3.55631]
[1740336465801,3.55587,2812.3,2812.0,0.08067306]
[1740336466097,3.55587,2812.3,2811.8,3.55637]